Cogmind - Beta 14 @@@ ROGUE MODE // 2025.03.21 @ 00:22:10 Player: SirusTheMadDJ Result: Self-destructed Performance ------------- Evolutions (1) 500 Regions Visited (2) 400 Robots Destroyed (8) 40 Value Destroyed (214) 214 Prototype IDs (0) 0 Alien Tech Used (0) 0 Bonus (0) 0 TOTAL SCORE: 1154 Bonus ------- None Cogmind --------- Core Integrity 365/400 Matter 266/300 Energy 225/265 System Corruption 0% Temperature Danger (467) Movement Core (300) Ox5 Location -9/Materials Parts ------- > --- POWER (1) -------- Improved Ion Engine > --- PROPULSION (4) --- (None) > --- UTILITY (2) ------ Small Storage Unit Signal Interpreter > --- WEAPON (2) ------- Medium Laser Particle Cannon > --- INVENTORY (8) ---- Light Ion Engine Improved Ion Engine Sensor Array Core Shielding Field Recycling Unit (0) Medium Laser Peak State ------------ > --- POWER ------------ Improved Ion Engine > --- PROPULSION ------- Aluminum Leg > --- UTILITY ---------- Small Storage Unit Signal Interpreter > --- WEAPON ----------- Medium Laser Particle Cannon > --- INVENTORY -------- Light Ion Engine Improved Ion Engine Medium Laser [Rating: 8] Favorites ----------- Power Improved Ion Engine Engine Improved Ion Engine Propulsion Aluminum Leg Leg Aluminum Leg Utility Small Storage Unit Storage Small Storage Unit Processor Signal Interpreter Weapon Medium Laser Energy Gun Medium Laser Energy Cannon Particle Cannon Build | -11 -10 -9 ------- Run | Yrd Mat Mat Slots Evolved 2 | . . 2 Power . | . . . Propulsion 2 | . . 2 Utility . | . . . Weapon . | . . . Parts Attached 11 | 5 3 3 Power 2 | . 1 1 Engine 2 | . 1 1 Core . | . . . Reactor . | . . . Propulsion 2 | 2 . . Treads . | . . . Leg 2 | 2 . . Wheel . | . . . Hover . | . . . Flight . | . . . Utility 2 | 1 1 . Device . | . . . Storage 1 | 1 . . Processor 1 | . 1 . Hackware . | . . . Protection . | . . . Artifact . | . . . Weapon 5 | 2 1 2 Energy Gun 4 | 2 1 1 Energy Cannon 1 | . . 1 Ballistic Gun . | . . . Ballistic Cannon . | . . . Launcher . | . . . Special Weapon . | . . . Impact Weapon . | . . . Slashing Weapon . | . . . Piercing Weapon . | . . . Special Melee Weapon . | . . . Unidentified Prototypes . | . . . Parts Lost 2 | . 1 1 Power . | . . . Propulsion 2 | . 1 1 Utility . | . . . Weapon . | . . . Highest Loss Streak 1 | . 1 1 To Critical Strikes . | . . . Average Slot Usage (%) 73 | . 90 66 Engine 10 | . 9 11 Leg 15 | . 27 11 Storage 11 | . 14 11 Processor 10 | . 10 11 Energy Gun 17 | . 28 13 Energy Cannon 6 | . . 8 Peak Build Rating 8 | 5 7 8 Average Rating 6 | 3 6 7 On Entrance 3 | . 5 6 Naked Turns . | . . . Heaviest Build 18 | 9 12 18 Greatest Support 20 | 20 20 10 Greatest Overweight (x) 1 | . 1 1 Average Overweight (x) . | . . 1 Largest Inventory Capacity 8 | 8 8 8 Average Capacity 7 | 7 8 8 Most Carried 6 | 2 2 6 Average Carried 3 | . 1 3 Final Capacity 8 | 8 8 8 Final Carried 6 | 2 2 6 Class Distribution -------------------- 100% | Mutant Dominant Class ---------------- Mutant | -10/Materials Mutant | -9/Materials Resources | -11 -10 -9 ----------- Run | Yrd Mat Mat Matter Collected 310 | 236 44 30 Remotely . | . . . Salvage Created 347 | . 211 136 Parts 23 | . 9 14 Haulers Intercepted . | . . . Recyclers Shooed 2 | . 2 . Parts Field Recycled . | . . . Retrieved Matter . | . . . Parts Self-Destructed . | . . . Prevented . | . . . Kills | -11 -10 -9 ------- Run | Yrd Mat Mat Combat Hostiles Destroyed 4 | . 2 2 Guns 3 | . 2 1 Cannons 1 | . . 1 Classes Destroyed 4 | . 3 1 Recycler 1 | . 1 . Watcher 3 | . 1 2 Grunt 3 | . 2 1 Sentry 1 | . . 1 Best Kill Streak 3 | . 3 3 Combat Bots Only 2 | . 2 2 Max Kills in Single Turn 1 | . 1 1 Gunslinging . | . . . Exploded . | . . . Melee . | . . . Uniques/NPCs Destroyed . | . . . Combat | -11 -10 -9 -------- Run | Yrd Mat Mat Hostile Shots Fired 62 | . 49 13 Missed 19 | . 16 3 Damage Taken 560 | . 416 144 Core 98 | . 63 35 Absorbed by Shields . | . . . Core Remaining (%) 87 | 100 74 . Volleys Fired 37 | . 25 12 Largest 2 | . 2 2 Hottest 118 | . 100 118 Shots Fired 56 | . 33 23 Gun 44 | . 33 11 Cannon 12 | . . 12 Launcher . | . . . Special . | . . . Kinetic . | . . . Thermal 49 | . 26 23 Explosive . | . . . Electromagnetic 7 | . 7 . Robot Hit Streak 10 | . 10 6 Robot Miss Streak 3 | . 2 3 Penetration Max . | . . . Secondary Targets . | . . . Shots Hit Robots 37 | . 22 15 Core Hits 15 | . 10 5 Critical Kills . | . . . Critical Parts Destroyed . | . . . Critical Strikes 1 | . 1 . Burn 1 | . 1 . Melee Attacks . | . . . Impact . | . . . Slashing . | . . . Piercing . | . . . Sneak Attacks . | . . . Combat Hostiles . | . . . Follow-up Attacks . | . . . Damage Inflicted 561 | . 287 274 Guns 375 | . 287 88 Cannons 186 | . . 186 Explosions . | . . . Melee . | . . . Ramming . | . . . Kinetic . | . . . Thermal 487 | . 213 274 Explosive . | . . . Electromagnetic 74 | . 74 . Impact . | . . . Slashing . | . . . Piercing . | . . . Highest Corruption . | . . . Average Corruption . | . . . Corruption Purged . | . . . Corruption Blocked . | . . . Overload Shots . | . . . Overflow Damage . | . . . Projectiles . | . . . Explosions . | . . . Melee . | . . . Knockbacks . | . . . Impact . | . . . Kinetic . | . . . Secondary . | . . . Self-Inflicted Damage . | . . . Shots . | . . . Rammed . | . . . Targets Rammed . | . . . Kicked . | . . . Crushed . | . . . Highest Temperature 461 | . 355 461 Average Temperature 201 | . 232 143 Received Heat Transfer 321 | . 237 84 Effects 8 | . 6 2 Shutdowns 1 | . . 1 Energy Bleed 1 | . . 1 Interference 5 | . 5 . Matter Decay 1 | . 1 . Siege Activations . | . . . Robots Corrupted . | . . . Combat Hostiles . | . . . Parts Fried . | . . . Impact Corruptions . | . . . Robots Melted . | . . . Combat Hostiles . | . . . Parts Melted 1 | . 1 . Heat Transferred 1295 | . 703 592 Parts Sabotaged . | . . . Parts Stolen . | . . . Parts Stripped . | . . . Power Chain Reactions . | . . . Alert | -11 -10 -9 ------- Run | Yrd Mat Mat Peak Influence 136 | . 77 136 Initial 27 | . . 27 Average 39 | . 34 48 Maximum Alert Level . | . . . Low Security (%) 100 | 100 100 100 Level 1 . | . . . Level 2 . | . . . Level 3 . | . . . Level 4 . | . . . Level 5 . | . . . High Security . | . . . Max Security . | . . . Squads Dispatched 2 | . 1 1 Investigation . | . . . Extermination . | . . . Reinforcement 2 | . 1 1 Assault . | . . . Garrison . | . . . Intercept . | . . . Searches Triggered . | . . . Construction Impeded . | . . . Haulers Reinforced . | . . . Active Scanning Responses . | . . . Cargo Convoy Interrupts . | . . . Stealth | -11 -10 -9 --------- Run | Yrd Mat Mat Distress Signals 2 | . 1 1 Communications Jammed . | . . . Distress Signals . | . . . Times Spotted 18 | . 7 11 Peak Tracking Total 4 | . 3 4 Tactical Retreats . | . . . Traps | -11 -10 -9 ------- Run | Yrd Mat Mat Traps Triggered . | . . . Indirectly . | . . . Trap Hack Attempts . | . . . Triggered . | . . . Disarmed . | . . . Reprogrammed . | . . . Reused . | . . . Traps Extracted . | . . . Installed . | . . . Triggered . | . . . Machines | -11 -10 -9 ---------- Run | Yrd Mat Mat Machines Disabled . | . . . Max in Single Turn . | . . . Machines Repaired . | . . . Machines Dismantled . | . . . Machines Sabotaged . | . . . Overloaded Fab Kills . | . . . Hacking | -11 -10 -9 --------- Run | Yrd Mat Mat Machines Accessed 1 | . . 1 Terminals . | . . . Fabricators . | . . . Repair Stations 1 | . . 1 Recycling Units . | . . . Scanalyzers . | . . . Garrison Access . | . . . Total Hacks 1 | . . 1 Successful . | . . . Failed 1 | . . 1 Catastrophic . | . . . Database Lockouts . | . . . Manual . | . . . Terminals . | . . . Fabricators . | . . . Repair Stations 1 | . . 1 Recycling Units . | . . . Scanalyzers . | . . . Garrison Access . | . . . Terminal Hacks . | . . . Fabricator Hacks . | . . . Repair Station Hacks . | . . . Recycling Unit Hacks . | . . . Scanalyzer . | . . . Garrison Access Hacks . | . . . Unauthorized Hacks . | . . . Terminals . | . . . Fabricators . | . . . Repair Stations . | . . . Recycling Units . | . . . Scanalyzers . | . . . Garrison Access . | . . . Data Cores Recovered . | . . . Used . | . . . Hacking Detections . | . . . Full Trace Events . | . . . Feedback Events . | . . . Feedback Blocked . | . . . Robot Schematics Acquired . | . . . Robots Built . | . . . Authchips . | . . . Time . | . . . Total Robot Build Rating . | . . . Part Schematics Acquired . | . . . Parts Built . | . . . Authchips . | . . . Time . | . . . Total Part Build Rating . | . . . Parts Repaired . | . . . Time . | . . . Parts Recycled . | . . . Recycled Matter . | . . . Retrieved Matter . | . . . Retrieved Components . | . . . Parts Scanalyzed . | . . . Part Schematics Acquired . | . . . Parts Damaged . | . . . Bothacking | -11 -10 -9 ------------ Run | Yrd Mat Mat Used RIF Installer . | . . . Robots Hacked . | . . . Non-combat . | . . . Combat . | . . . Robot Hacks Applied . | . . . Relay Couplers Released . | . . . Fabnet Peak Effective % . | . . . Robots Rewired . | . . . Allies Hacked . | . . . Hacks Repelled . | . . . Allies | -11 -10 -9 -------- Run | Yrd Mat Mat Total Allies . | . . . Largest Group . | . . . Highest-Rated Group . | . . . Highest-Rated Ally . | . . . Total Orders . | . . . Ally Attacks . | . . . Total Damage . | . . . Kills . | . . . Allies Corrupted . | . . . Allies Melted . | . . . Intel | -11 -10 -9 ------- Run | Yrd Mat Mat Robot Analysis Total . | . . . Derelict Logs Recovered . | . . . Drone Launches . | . . . Drone Recoveries . | . . . Exploration | -11 -10 -9 ------------- Run | Yrd Mat Mat Turns Passed 627 | 63 169 395 Spaces Moved 314 | 46 86 182 Core 1 | 1 . . Treads . | . . . Legs 313 | 45 86 182 Wheels . | . . . Hover . | . . . Flight . | . . . Fastest Speed 50 | 50 120 190 Average Speed 161 | 118 124 190 Slowest Speed 190 | 120 190 190 Overloaded Moves . | . . . Propulsion Burnouts . | . . . Robots Hopped . | . . . Cave-ins Triggered . | . . . Exploration Rate (%) 16 | 5 23 20 Regions Visited 2 Branch Regions . Pre-discovered Areas . | . . . Known Exits Taken 1 | . 1 . Unknown Exits Taken 1 | 1 . . Scrap Searched . | . . . Spaces Dug . | . . . Terrain Destroyed . | . . . Melee . | . . . Projectile . | . . . AOE . | . . . Terrain Rammed . | . . . Walls Destroyed . | . . . Machines Disabled . | . . . Actions | -11 -10 -9 --------- Run | Yrd Mat Mat Total 375 | 52 115 208 Wait 4 | . 1 3 Move 312 | 45 85 182 Hop . | . . . Pick Up 8 | 2 1 5 Fast Attach 6 | 5 1 . Attach 2 | . 1 1 Detach 1 | . . 1 Swap 3 | . 1 2 Drop 2 | . . 2 Fire 37 | . 25 12 Melee . | . . . Ram . | . . . Kick . | . . . Crush . | . . . Escape Stasis . | . . . Rewire . | . . . Trap . | . . . Miscellaneous . | . . . Route ------- -11/Scrapyard -10/Materials -9/Materials History --------- Turn | Location | Event 30 | -11/Scrapyard | Discovered new exit (range 15) 64 | -11/Scrapyard | Entered Materials 155 | -10/Materials | Discovered new exit (range 14) 231 | -10/Materials | Identified exit to Materials 233 | -10/Materials | Entered another Materials area 233 | -9/Materials | Evolved 2 slots: Propulsion x2 314 | -9/Materials | Build established: Mutant 628 | -9/Materials | Self-destructed Last Messages --------------- K-01 Serf collects debris. C-30 ARC bursts open, deploying its payload. G-47 Trooper unfolds itself. G-34 Mercenary unfolds itself. ALERT: Hostiles spotted, dispatching reinforcements to Terminal M001. G-34 Mercenary destroyed. K-01 Serf collects debris. R-06 Scavenger collects Lgt. Treads. K-01 Serf collects debris. R-06 Scavenger collects Visual Processing Unit. K-01 Serf collects debris. R-06 Scavenger collects Signal Interpreter. Aluminum Leg destroyed. K-01 Serf collects debris. R-06 Scavenger collects Hvy. Assault Rifle. K-01 Serf collects debris. R-06 Scavenger collects Sml. Laser. Power failure, Imp. Ion Engine shutdown. Overheating: Energy bleed (-44). Map ----- +----------------------------------------------------+ | #???# #??????# #??????????????# #?????????? | | ##### ###########+####????????????## ##????????? | | ############## #????????? | | #????????? | | T #????????? | | ####+######+######+###### ########## #????????? | | ?# # ## ???# #????????######????????? | | ?#!! [*# """ ## ?# ########???????????????? | | ?#!! # """ ## = ""## # #???????????????? | | ?#!* # """ ## Y"## # """#???????????????? | | ?# # ## ""## # R"#???????????????? | | ?# # """ ##= ## # """#???????????????? | | ?######## """ ########## + #???????????????? | | ????????# """ ## # # #???????????????? | | ????????# ##""" # ########???????????????? | | ????????#?""" ##""" ! + + #????????????????? | | ??????????""" ##""" # # #????????????????? | | ???????????"" ## ! # # """ #????????????????? | | ???????????? ########?# # """ #????????????????? | | ????????????####????????# # """ #????????????????? | | ??????????? ######### # #????????????????? | | ??????????? g ^ # """ #????????????????? | | ???????????? T ^ # """ #????????????????? | | ?????????????? # """ #????????????????? | | ?????????????????????# + #????????????????? | | ?????????????????????# r@# #????????????????? | | ?????????????????????# # #????????????????? | | ?????????????????????# !g#######????????????????? | | ?????????????????????# * ??????????????????????? | | ?????????????????????# %??????????????????????? | | ?????????????????????# ??????????????????????? | | ?????????????????????# ??????????????????????? | | ?????????????????????# ?????????????????????? | | ?????????????????????## "?????????????????????? | | ??????????????????????# "?????????????????????? | | ??????????????????????# ! "?????????????????????? | | ??????????????????????#r% g"?????????????????????? | | ??????????????????????# gk ?????????????????????? | | ??????????????????????+ ?????????????????????? | | ??????????????????????# * ?????????????????????? | | ???????????????????????#+###?????????????????????? | | ?????????????????????????????????????????????????? | | ?????????????????????????????????????????????????? | | ?????????????????????????????????????????????????? | | ?????????????????????????????????????????????????? | | ?????????????????????????????????????????????????? | | ?????????????????????????????????????????????????? | | ?????????????????????????????????????????????????? | | ?????????????????????????????????????????????????? | | ?????????????????????????????????????????????????? | +----------------------------------------------------+ Best States ------------- Heat Dissipation 28 Energy Generation 12 Energy Capacity 265 Matter Stores 300 Matter Capacity 300 Sight Range 16 Terrain Scan Density 10 Evasion (%) 55 Item Schematics ----------------- None Robot Schematics ------------------ None Fabricated ------------ Nothing Alien Tech Used ----------------- None Achievements -------------- None Challenges ------------ None Game ------ Seed ShadeActiveBay Manual? 0 Play Time 00:11:25 Cumulative 4.2 hours Start 2025.03.21 @ 00:12:22 End 2025.03.21 @ 00:22:10 Sessions 1 Manual Loads 0 Difficulty Rogue Special Mode None Game No. 10 Rogue 10 Adventurer 0 Explorer 0 Win Type - Total 0 Types 0/0/0/0/0/0/0/0/0 Lore% 3 Gallery% 9 Achievement% 10 Wizard Run 0 Options --------- Layout 1 ASCII 0 Keyboard 0 Movement Mouse Keybinds 0 Fullscreen 1 Font 24/Smallcaps Map View 50x35 Zoom Use 0% Tactical HUD 0 Map Filters NONE Filters NONE Steam 1 RUN: 871f111f-1e37-44cf-a4fa-bcddaf85bae8